Cogmind - Beta 11 X11 @@@ ROGUE MODE // 2022.03.01 @ 19:00:33 Player: Puzzlebark Result: Destroyed by Y-54 Guardian with Gatling Laser Performance ------------- Evolutions (3) 1500 Regions Visited (5) 1000 Robots Destroyed (65) 325 Value Destroyed (1535) 1535 Prototype IDs (4) 80 Alien Tech Used (0) 0 Bonus (-137) -137 TOTAL SCORE: 4303 Bonus ------- High Alert Combat Kills 35 Friendly Fire -172 Cogmind --------- Core Integrity 0/700 Matter 286/300 Energy 72/100 System Corruption 2% Temperature Cool (6) Movement Core (50) Location -7/Factory Parts ------- > --- POWER (1) -------- (None) > --- PROPULSION (3) --- (None) > --- UTILITY (7) ------ Hacking Suite Hacking Suite > --- WEAPON (2) ------- Autogun > --- INVENTORY (5) ---- Authchip [Propulsion] Peak State ------------ > --- POWER ------------ Light Ion Engine > --- PROPULSION ------- VTOL Module Nuclear Pulse Thruster Nuclear Pulse Thruster > --- UTILITY ---------- Improved Sensor Array Improved Signal Interpreter Insulated Plating Hacking Suite Hacking Suite Hacking Suite > --- WEAPON ----------- Great Axe > --- INVENTORY -------- (None) [Rating: 35] Favorites ----------- Power Light Ion Engine Engine Light Ion Engine Power Core Light Nuclear Core Propulsion Aluminum Leg Treads Light Treads Leg Aluminum Leg Hover Unit Backup Propulsion I Flight Unit VTOL Module Utility Hacking Suite Device Heat Sink Storage Small Storage Unit Processor Signal Interpreter Hackware Hacking Suite Protection Core Shielding Weapon Scythe Energy Gun Beamcaster Ballistic Gun Autogun Launcher Grenade Launcher Slashing Weapon Scythe Build | -11 -10 -10 -9 -8 -7 ------- Run | Scr Mat Min Mat Mat Fac Slots Evolved 6 | . . . 2 2 2 Power . | . . . . . . Propulsion 1 | . . . . . 1 Utility 5 | . . . 2 2 1 Weapon . | . . . . . . Parts Attached 64 | 5 3 7 22 10 17 Power 8 | 1 . 2 4 1 . Engine 6 | 1 . . 4 1 . Core 2 | . . 2 . . . Reactor . | . . . . . . Propulsion 19 | 2 1 2 6 2 6 Treads 2 | . . . . . 2 Leg 11 | 2 1 2 6 . . Wheel . | . . . . . . Hover . | . . . . . . Flight 6 | . . . . 2 4 Utility 19 | 1 1 . 5 7 5 Device 4 | . . . 2 2 . Storage 1 | 1 . . . . . Processor 2 | . . . . 1 1 Hackware 6 | . . . 1 3 2 Protection 6 | . 1 . 2 1 2 Artifact . | . . . . . . Weapon 18 | 1 1 3 7 . 6 Energy Gun 8 | 1 . 2 4 . 1 Energy Cannon . | . . . . . . Ballistic Gun 2 | . . . . . 2 Ballistic Cannon . | . . . . . . Launcher 2 | . 1 1 . . . Special Weapon . | . . . . . . Impact Weapon . | . . . . . . Slashing Weapon 6 | . . . 3 . 3 Piercing Weapon . | . . . . . . Special Melee Weapon . | . . . . . . Unidentified Prototypes 2 | . . . 2 . . Parts Lost 36 | . 1 2 13 4 16 Power 5 | . . 1 2 1 1 Propulsion 13 | . 1 1 5 1 5 Utility 12 | . . . 4 2 6 Weapon 6 | . . . 2 . 4 Highest Loss Streak 12 | . 1 2 5 3 12 To Critical Strikes 2 | . . . . . 2 Average Slot Usage (%) 86 | . 96 99 75 85 82 Engine 6 | . 14 . 9 8 2 Core 2 | . . 12 . . . Treads 1 | . . . . . 7 Leg 14 | . 27 27 16 . . Hover 1 | . . . 1 13 . Flight 3 | . . . . 3 13 Device 5 | . . . 10 8 6 Storage 8 | . 14 14 11 4 . Processor 2 | . . . . 8 6 Hackware 9 | . . . . 25 27 Protection 10 | . 12 14 12 2 6 Energy Gun 6 | . 14 13 4 . . Launcher 5 | . 12 14 . . . Slashing Weapon 5 | . . . 9 9 6 Naked Turns . | . . . . . . Heaviest Build 23 | 12 16 19 23 12 11 Greatest Support 40 | 20 20 25 26 12 40 Greatest Overweight (x) 2 | . 1 1 2 1 1 Average Overweight (x) . | . . . . . . Largest Inventory Capacity 8 | 8 8 8 8 8 5 Average Capacity 7 | 7 8 8 8 6 5 Most Carried 8 | . 5 7 8 8 5 Average Carried 3 | . 2 4 4 4 . Final Capacity 8 | 8 8 8 8 5 5 Final Carried 8 | . 5 4 8 5 1 Class Distribution -------------------- 47% | Mutant 22% | Hacker-Mutant 12% | Scavenger-Mutant 10% | Hacker-Sprinter 7% | Commander-Mutant Dominant Class ---------------- Mutant | -10/Materials Mutant | -10/Mines Mutant | -9/Materials Hacker-Mutant | -8/Materials Hacker-Mutant | -7/Factory Resources | -11 -10 -10 -9 -8 -7 ----------- Run | Scr Mat Min Mat Mat Fac Matter Collected 961 | 102 54 339 240 76 150 Remotely . | . . . . . . Salvage Created 1944 | . 206 393 969 265 111 Parts 140 | . 20 23 70 21 6 Haulers Intercepted 2 | . . . 1 1 . Recyclers Shooed . | . . . . . . Parts Field Recycled . | . . . . . . Retrieved Matter . | . . . . . . Parts Self-Destructed . | . . . . . . Prevented . | . . . . . . Kills | -11 -10 -10 -9 -8 -7 ------- Run | Scr Mat Min Mat Mat Fac Combat Hostiles Destroyed 43 | . 5 11 19 6 2 Melee 22 | . . . 14 6 2 Guns 10 | . 3 5 2 . . AOE 11 | . 2 6 3 . . Classes Destroyed 11 | . 5 1 5 . . Worker 2 | . 1 . 1 . . Builder 6 | . . . 5 . 1 Tunneler 1 | . 1 . . . . Hauler 2 | . . . 1 1 . Recycler 1 | . . . 1 . . Operator 7 | . 1 . 5 1 . Watcher 2 | . 1 . . . 1 Swarmer 13 | . . 2 6 3 2 Grunt 23 | . 5 10 8 . . Duelist 1 | . . . 1 . . Sentry 7 | . . . 4 3 . Best Kill Streak 5 | . 5 3 4 5 2 Combat Bots Only 5 | . 2 3 4 5 2 Max Kills in Single Turn 4 | . 4 2 2 1 1 Gunslinging . | . . . . . . Exploded 2 | . 2 2 2 . . Melee 1 | . . . 1 1 1 Uniques/NPCs Destroyed . | . . . . . . Combat | -11 -10 -10 -9 -8 -7 -------- Run | Scr Mat Min Mat Mat Fac Damage Taken 3934 | . 363 232 1432 325 1582 Core 1267 | . 61 20 350 130 706 Absorbed by Shields . | . . . . . . Redirected to Shielding 56 | . 14 5 37 . . Core Remaining (%) 63 | 100 . 67 12 76 . Volleys Fired 85 | . 41 27 13 . 4 Largest 2 | . 1 2 1 . 1 Hottest 80 | . 50 80 75 . 80 Shots Fired 88 | . 41 30 13 . 4 Gun 67 | . 34 21 8 . 4 Cannon . | . . . . . . Launcher 21 | . 7 9 5 . . Special . | . . . . . . Kinetic 3 | . . . . . 3 Thermal 59 | . 34 17 7 . 1 Explosive 21 | . 7 9 5 . . Electromagnetic 5 | . . 4 1 . . Robot Hit Streak 10 | . 6 10 3 . 1 Robot Miss Streak 5 | . 4 3 5 . 3 Penetration Max . | . . . . . . Secondary Targets . | . . . . . . Shots Hit Robots 130 | . 26 18 54 17 15 Core Hits 71 | . 15 17 27 6 6 Critical Kills . | . . . . . . Critical Parts Destroyed . | . . . . . . Critical Strikes 12 | . 1 3 7 . 1 Burn 5 | . 1 3 1 . . Sever 7 | . . . 6 . 1 Melee Attacks 120 | . . . 73 23 24 Impact . | . . . . . . Slashing 120 | . . . 73 23 24 Piercing . | . . . . . . Sneak Attacks 18 | . . . 13 3 2 Combat Hostiles 1 | . . . . . 1 Follow-up Attacks . | . . . . . . Damage Inflicted 5586 | . 588 707 2799 781 711 Guns 694 | . 293 257 115 . 29 Cannons . | . . . . . . Explosions 934 | . 295 450 189 . . Melee 3958 | . . . 2495 781 682 Ramming . | . . . . . . Kinetic 18 | . . . . . 18 Thermal 617 | . 293 198 115 . 11 Explosive 934 | . 295 450 189 . . Electromagnetic 59 | . . 59 . . . Impact . | . . . . . . Slashing 3958 | . . . 2495 781 682 Piercing . | . . . . . . Highest Corruption 10 | . . . 10 . 2 Average Corruption 5 | . . . 10 . 2 Corruption Purged . | . . . . . . Corruption Blocked . | . . . . . . Effects 26 | . . . 15 . 11 Message Errors 5 | . . . 3 . 2 Matter Fused 4 | . . . 3 . 1 Heat Flow Errors 4 | . . . 3 . 1 Energy Discharges 2 | . . . 2 . . Parts Rejected 1 | . . . . . 1 Data Loss (minor) 5 | . . . 1 . 4 Data Loss (major) 4 | . . . 2 . 2 Misdirections 1 | . . . 1 . . Overload Shots . | . . . . . . Overflow Damage 644 | . . 16 427 160 41 Projectiles . | . . . . . . Explosions 16 | . . 16 . . . Melee 628 | . . . 427 160 41 Knockbacks . | . . . . . . Impact . | . . . . . . Kinetic . | . . . . . . Secondary . | . . . . . . Self-Inflicted Damage 82 | . 24 38 20 . . Shots 3 | . 1 1 1 . . Rammed . | . . . . . . Targets Rammed . | . . . . . . Kicked . | . . . . . . Crushed . | . . . . . . Highest Temperature 255 | . 129 255 210 18 235 Average Temperature 69 | . 42 82 95 18 106 Received Heat Transfer 906 | . 189 105 357 99 156 Siege Activations . | . . . . . . Robots Corrupted . | . . . . . . Combat Hostiles . | . . . . . . Parts Fried . | . . . . . . Impact Corruptions . | . . . . . . Robots Melted . | . . . . . . Combat Hostiles . | . . . . . . Parts Melted 2 | . . 1 1 . . Heat Transferred 1764 | . 925 555 259 . 25 Parts Sabotaged . | . . . . . . Parts Stolen . | . . . . . . Parts Stripped . | . . . . . . Power Chain Reactions . | . . . . . . Missiles Intercepted . | . . . . . . Alert | -11 -10 -10 -9 -8 -7 ------- Run | Scr Mat Min Mat Mat Fac Peak Influence 492 | . 352 392 492 272 125 Initial 123 | . . 92 31 29 123 Average 180 | . 165 238 298 109 42 Maximum Alert Level 2 | . 1 1 2 1 . Low Security (%) 64 | 100 70 50 31 85 100 Level 1 24 | . 29 49 31 14 . Level 2 10 | . . . 37 . . Level 3 . | . . . . . . Level 4 . | . . . . . . Level 5 . | . . . . . . High Security . | . . . . . . Max Security . | . . . . . . Squads Dispatched 19 | . 3 1 5 7 3 Investigation 8 | . 2 1 1 2 2 Extermination 1 | . . . . . 1 Reinforcement 10 | . 1 . 4 5 . Assault . | . . . . . . Garrison . | . . . . . . Intercept . | . . . . . . Searches Triggered . | . . . . . . Construction Impeded . | . . . . . . Haulers Reinforced . | . . . . . . Active Scanning Responses . | . . . . . . Cargo Convoy Interrupts . | . . . . . . Stealth | -11 -10 -10 -9 -8 -7 --------- Run | Scr Mat Min Mat Mat Fac Distress Signals 3 | . 1 . 1 . 1 Communications Jammed . | . . . . . . Distress Signals . | . . . . . . Times Spotted 99 | . 17 11 37 22 12 Peak Tracking Total 11 | . 4 2 7 11 7 Tactical Retreats 1 | . . . . 1 . Traps | -11 -10 -10 -9 -8 -7 ------- Run | Scr Mat Min Mat Mat Fac Traps Triggered . | . . . . . . Indirectly . | . . . . . . Trap Hack Attempts . | . . . . . . Triggered . | . . . . . . Disarmed . | . . . . . . Reprogrammed . | . . . . . . Reused . | . . . . . . Traps Extracted . | . . . . . . Installed . | . . . . . . Triggered . | . . . . . . Machines | -11 -10 -10 -9 -8 -7 ---------- Run | Scr Mat Min Mat Mat Fac Machines Disabled 1 | . 1 . . . . Max in Single Turn 1 | . 1 . . . . Garrison Access 1 | . . . . 1 . Machines Sabotaged . | . . . . . . Garrisons Compromised . | . . . . . . Overloaded Fab Kills . | . . . . . . Hacking | -11 -10 -10 -9 -8 -7 --------- Run | Scr Mat Min Mat Mat Fac Machines Accessed 28 | . 8 2 4 3 11 Terminals 20 | . 7 . 3 2 8 Fabricators 2 | . . . . . 2 Repair Stations 1 | . . . 1 . . Recycling Units 2 | . 1 . . . 1 Scanalyzers . | . . . . . . Garrison Access 1 | . . . . 1 . Total Hacks 86 | . 35 2 15 11 23 Successful 64 | . 21 2 11 8 22 Failed 21 | . 13 . 4 3 1 Catastrophic 1 | . 1 . . . . Database Lockouts 1 | . 1 . . . . Manual 54 | . 19 . 13 11 11 Terminals 75 | . 33 . 14 10 18 Fabricators 4 | . . . . . 4 Repair Stations 1 | . . . 1 . . Recycling Units 3 | . 2 . . . 1 Scanalyzers . | . . . . . . Garrison Access 1 | . . . . 1 . Terminal Hacks 33 | . 12 2 5 3 11 Record 1 | . . . . . 1 Part Schematic 3 | . . . . 1 2 Robot Analysis 3 | . 2 . . 1 . Prototype ID Bank 1 | . . . 1 . . Open Door 2 | . . 2 . . . Open DSF 2 | . . . . . 2 Terminal Index 3 | . 2 . . . 1 Fabricator Index 1 | . . . . . 1 Alert Level 2 | . . . 1 . 1 Unreport Threat 2 | . . . 1 . 1 Locate Traps 1 | . 1 . . . . Dispatch Records 1 | . 1 . . . . Patrol Status 1 | . 1 . . . . Recall Investigation 1 | . . . . . 1 Recall Extermination 1 | . . . . . 1 Recall Reinforcements 1 | . . . . 1 . Hauler Manifests 2 | . 2 . . . . Registered Components 2 | . 1 . 1 . . Zone Layout 3 | . 2 . 1 . . Fabricator Hacks 4 | . . . . . 4 Load Schematic 2 | . . . . . 2 Build 2 | . . . . . 2 Repair Station Hacks 1 | . . . 1 . . Refit 1 | . . . 1 . . Recycling Unit Hacks 3 | . 2 . . . 1 Report Inventory 1 | . 1 . . . . Retrieve Components 2 | . 1 . . . 1 Scanalyzer . | . . . . . . Garrison Access Hacks 1 | . . . . 1 . Seal Access 1 | . . . . 1 . Unauthorized Hacks 22 | . 7 . 5 4 6 Terminals 22 | . 7 . 5 4 6 Track 5 | . 1 . 1 2 1 Assimilate 6 | . 2 . 1 . 3 Botnet 9 | . 3 . 2 2 2 Operators 2 | . 1 . 1 . . Fabricators . | . . . . . . Repair Stations . | . . . . . . Recycling Units . | . . . . . . Scanalyzers . | . . . . . . Garrison Access . | . . . . . . Data Cores Recovered . | . . . . . . Used . | . . . . . . Hacking Detections 22 | . 8 . 4 2 8 Full Trace Events 9 | . 4 . 1 2 2 Feedback Events 1 | . . . . . 1 Hackware Fried 1 | . . . . . 1 Feedback Blocked . | . . . . . . Robot Schematics Acquired . | . . . . . . Robots Built . | . . . . . . Authchips . | . . . . . . Time . | . . . . . . Total Robot Build Rating . | . . . . . . Part Schematics Acquired 3 | . . . . 1 2 Parts Built 4 | . . . . . 4 Authchips . | . . . . . . Time 83 | . . . . . 83 Total Part Build Rating 16 | . . . . . 16 Parts Repaired . | . . . . . . Time . | . . . . . . Parts Recycled . | . . . . . . Recycled Matter . | . . . . . . Retrieved Matter . | . . . . . . Retrieved Components 12 | . 9 . . . 3 Parts Scanalyzed . | . . . . . . Part Schematics Acquired . | . . . . . . Parts Damaged . | . . . . . . Bothacking | -11 -10 -10 -9 -8 -7 ------------ Run | Scr Mat Min Mat Mat Fac Used RIF Installer . | . . . . . . Robots Hacked . | . . . . . . Non-combat . | . . . . . . Combat . | . . . . . . Robot Hacks Applied . | . . . . . . Relay Couplers Released . | . . . . . . Fabnet Peak Effective % . | . . . . . . Robots Rewired . | . . . . . . Allies Hacked . | . . . . . . Hacks Repelled . | . . . . . . Allies | -11 -10 -10 -9 -8 -7 -------- Run | Scr Mat Min Mat Mat Fac Total Allies 8 | . 1 3 1 . 3 Largest Group 4 | . 1 4 1 1 2 Highest-Rated Group 50 | . 10 50 10 10 26 Highest-Rated Ally 26 | . 10 16 10 10 26 Total Orders 8 | . . 6 . . 2 STAY 4 | . . 3 . . 1 FOLLOW 4 | . . 3 . . 1 Ally Attacks 5 | . . 5 . . . Total Damage 40 | . . 40 . . . Kills . | . . . . . . Allies Corrupted . | . . . . . . Allies Melted . | . . . . . . Intel | -11 -10 -10 -9 -8 -7 ------- Run | Scr Mat Min Mat Mat Fac Robot Analysis Total 3 | . 2 . . 1 . Derelict Logs Recovered 1 | . . 1 . . . Drone Launches . | . . . . . . Drone Recoveries . | . . . . . . Exploration | -11 -10 -10 -9 -8 -7 ------------- Run | Scr Mat Min Mat Mat Fac Turns Passed 4329 | 50 714 872 1246 354 1093 Spaces Moved 3183 | 38 476 633 688 438 910 Core 29 | 3 . . 7 . 19 Treads 339 | . . . . . 339 Legs 1767 | 35 476 633 623 . . Wheels . | . . . . . . Hover 321 | . . . 58 263 . Flight 727 | . . . . 175 552 Fastest Speed 30 | 50 120 120 76 37 30 Average Speed 102 | 114 121 120 128 60 80 Slowest Speed 190 | 120 190 190 190 160 160 Overloaded Moves . | . . . . . . Propulsion Burnouts . | . . . . . . Robots Hopped 1 | . . . . . 1 Cave-ins Triggered 1 | . . . 1 . . Exploration Rate (%) 53 | 4 83 92 67 50 23 Regions Visited 5 Branch Regions 1 Pre-discovered Areas . | . . . . . . Known Exits Taken 1 | . . . . 1 . Unknown Exits Taken 4 | 1 1 1 1 . . Scrap Searched 1 | . . 1 . . . Spaces Dug 25 | . 9 . 7 1 8 Terrain Destroyed 192 | . 48 78 57 1 8 Melee 16 | . . . 7 1 8 Projectile 2 | . . 1 1 . . AOE 174 | . 48 77 49 . . Terrain Rammed . | . . . . . . Walls Destroyed . | . . . . . . Machines Disabled . | . . . . . . Actions | -11 -10 -10 -9 -8 -7 --------- Run | Scr Mat Min Mat Mat Fac Total 3969 | 42 572 714 927 491 1223 Wait 468 | . 45 36 112 14 261 Move 3176 | 37 475 632 687 437 908 Hop 1 | . . . . . 1 Pick Up 23 | . 7 4 7 3 2 Fast Attach 37 | 5 2 5 11 3 11 Attach 21 | . 1 . 9 7 4 Detach 9 | . . . 7 1 1 Swap 6 | . . 2 2 . 2 Drop 23 | . 1 8 6 3 5 Fire 85 | . 41 27 13 . 4 Melee 120 | . . . 73 23 24 Ram . | . . . . . . Kick . | . . . . . . Crush . | . . . . . . Escape Stasis . | . . . . . . Rewire . | . . . . . . Trap . | . . . . . . Miscellaneous . | . . . . . . Route ------- -11/Scrapyard -10/Materials (discovered 3 exits: *Mat x2 / *Min) -10/Mines (discovered 2 exits: *Mat x2) -9/Materials (discovered 3 exits: *Mat x3) -8/Materials -7/Factory History --------- Turn | Location | Event 2 | -11/Scrapyard | Discovered new exit (range 16) 51 | -11/Scrapyard | Entered Materials 109 | -10/Materials | Central database locked down 277 | -10/Materials | Discovered new exit (range 9) 301 | -10/Materials | Build established: Mutant 497 | -10/Materials | Discovered new exit (range 9) 699 | -10/Materials | Discovered new exit (range 16) 765 | -10/Materials | Entered Mines 765 | -10/Mines | Accompanied by 1 ally 804 | -10/Mines | Learned Materials emergency access door positions 814 | -10/Mines | Met a Derelict shopkeep closing up shop 923 | -10/Mines | Discovered new exit (range 13) 1013 | -10/Mines | Found a damaged Exp. Sensor Array with a note attached 1015 | -10/Mines | Found Prototype Device 1091 | -10/Mines | Discovered new exit (range 10) 1148 | -10/Mines | Assisted by bots powering up and referring to "LRC-V3" 1313 | -10/Mines | Found the Drone Emporium 1436 | -10/Mines | Build established: Commander-Mutant 1637 | -10/Mines | Entered Materials 1637 | -9/Materials | Accompanied by 1 ally 1637 | -9/Materials | Evolved 2 slots: Utility x2 1638 | -9/Materials | Identified Exp. Sensor Array 1748 | -9/Materials | Lost 3 parts (1p1u1w) 1803 | -9/Materials | Core integrity fell below 50% 1824 | -9/Materials | Lost 5 parts (1p2n1u1w) 2136 | -9/Materials | Build established: Scavenger-Mutant 2241 | -9/Materials | Discovered new exit (range 3) 2487 | -9/Materials | Crushed by falling debris 2487 | -9/Materials | Core integrity fell below 20% 2487 | -9/Materials | System corruption reached 10% 2514 | -9/Materials | Build established: Mutant 2518 | -9/Materials | Lost 3 parts (1n2u) 2563 | -9/Materials | Discovered new exit (range 16) 2856 | -9/Materials | Discovered new exit (range 11) 2883 | -9/Materials | Entered another Materials area 2883 | -8/Materials | Accompanied by 1 ally 2883 | -8/Materials | Evolved 2 slots: Utility x2 3185 | -8/Materials | Lost 3 parts (1p1n1u) 3195 | -8/Materials | Build established: Hacker-Mutant 3235 | -8/Materials | Discovered new exit (range 6) 3237 | -8/Materials | Identified exit to Factory 3237 | -8/Materials | Entered Factory 3237 | -7/Factory | Evolved 2 slots: Propulsion x1, Utility x1 3473 | -7/Factory | Hacking Suite fried by hacking feedback 3520 | -7/Factory | Fabricated Nuclear Pulse Thruster (x2) 3544 | -7/Factory | Build established: Hacker-Sprinter 3687 | -7/Factory | Fabricated Imp. Signal Interpreter (x2) 3738 | -7/Factory | Lost 3 parts (1p2n) 3994 | -7/Factory | Build established: Hacker-Mutant 4302 | -7/Factory | Core integrity fell below 50% 4315 | -7/Factory | Core integrity fell below 20% 4330 | -7/Factory | Destroyed by Y-54 Guardian with Gatling Laser Last Messages --------------- 04295_ K-01 Serf collects debris. 04297_ Acquired Greatsword. 04297_ Imp. Signal Interpreter destroyed. 04299_ K-01 Serf collects debris. 04305_ S-27 Virus destroyed. 04306_ K-01 Serf destroyed. 04306_ Greatsword destroyed. 04307_ Acquired Autogun. 04311_ System corrupted: Autogun rejected. 04313_ Acquired Greatsword. 04318_ Acquired 28 matter. 04318_ K-01 Serf collects debris. 04319_ Acquired 12 matter. 04322_ Greatsword destroyed. 04322_ K-01 Serf collects debris. 04323_ Acquired Gatling Laser. 04326_ K-01 Serf collects debris. 04327_ Gatling Laser destroyed. 04327_ Hacking Suite destroyed. 04328_ Acquired Autogun. Map ----- +----------------------------------------------------+ | ?????????????????????????????????????????????????? | | ?????????????????????????????????????????????????? | | ?????????????????????????????????????????????????? | | ?????????????????????????????????????????????????? | | ?????????????????????????????????????????????????? | | ?????????????????????????????????????????????????? | | ?????????????????????????????????????????????????? | | ?????????????????????????????????????????????????? | | ?????????????????????????????????????????????????? | | ?????????????????????????????????????????????????? | | ???????????????????????????? ????????????????????? | | ???????????????????????????? +???????????????????? | | ???????????????????????????? #???????????????????? | | ???????????????????????????? ##??????????????????? | | ???????????????????????????? ???????????????????? | | ??????????????##???????????? ???????????????????? | | ??????????????? ??????????? ???????????????????? | | ???????????????? ?######### #???????????????????? | | ????????????????? # #???????????????????? | | ?????????????????? # #???????????????????? | | ???????????????????+ #???????????????????? | | ???????????????????# """ #??????### ?????????? | | ???????????????????# """ #????? ?????????? | | ???????????????????# """Y[###+## #????????? | | ?????????#######+??# % Y #????????? | | ????????? ## @**= #????????? | | ???????? !! %* #####+?????????? | | ???????? !! sk #??????????????? | | ??????????##+## ! #??????????????? | | ??????????????# #??????????????? | | ??????????????# !! # """??????????? | | ??????????????+ !! + """??????????? | | ??????????????# ^^ # """??????????? | | ??????????????# ^^ ### #??"???????????? | | ??????????????############## #?# #??????????????? | | ?????????????????????#######+### #??????????????? | | ?????????????????????# # #??????????????? | | ?????????????????????# """ """ # #??????????????? | | ?????????????????????# """ """ # #??????????????? | | ???????????""????????# """ """ # #??########????? | | ??????????#"""???????# "" "" # #??# #????? | | ??????????#"""???????# "" "" # #??# #????? | | ??????????# ??????# # #??# #????? | | ??????????#""" ??????#! [ # #??# #????? | | ??????????#""" ?#########+##### #### #????? | | ###########""" ?# # #????? | | # # # #????? | | " ]]] ! #""" # + #????? | | " ]]] #""" + # #????? | | T ]] #""" # # #????? | +----------------------------------------------------+ Best States ------------- Heat Dissipation 41 Energy Generation 14 Energy Capacity 280 Matter Stores 300 Matter Capacity 300 Sight Range 16 Robot Scan Range 20 Terrain Scan Density 10 Armor Coverage 150 Resistance: EM 15 Core Shielding 20 Evasion (%) 64 Recoil Reduction 2 Offensive Hacking 40 Authchip Count 1 Item Schematics ----------------- Imp. Signal Interpreter | -8/Materials | Hacked System Shield | -7/Factory | Hacked Nuclear Pulse Thruster | -7/Factory | Hacked Robot Schematics ------------------ None Fabricated ------------ Nuclear Pulse Thruster | x2 | -7/Factory Imp. Signal Interpreter | x2 | -7/Factory Alien Tech Used ----------------- None Achievements -------------- None Challenges ------------ None Game ------ Seed PhasingLightningHammer Manual? 0 Play Time 00:51:07 Cumulative 189.2 hours Start 2022.03.01 @ 17:14:24 End 2022.03.01 @ 19:00:33 Sessions 1 Manual Loads 0 Difficulty Rogue Special Mode None Game No. 178 Rogue 117 Adventurer 61 Explorer 0 Win Type - Total 9 Types 7/0/2/0/0/0/0/0/0 Lore% 50 Gallery% 70 Achievement% 60 Wizard Run 0 Options --------- ASCII 0 Keyboard 0 Movement Mouse Keybinds 0 Fullscreen 2 Font 24/Smallcaps Map View 76x50 Tactical HUD 1 Map Filters NONE Filters NONE Steam 1 RUN: 9a5fd16f-1e97-4683-85a6-cc55c1e5cb1d